[Event "Titled Tuesday Blitz February 14 Late 2023"]
[White "Martinez Ramirez, Lennis"]
[Black "Madaminov, Mukhiddin"]
[WhiteFideId "3509079"]
[BlackFideId "14210703"]
[WhiteElo "2426"]
[BlackElo "2422"]
[Result "0-1"]
[Round "11"]
[TimeControl "180+2"]
[Date "2023.02.14"]
[WhiteClock "0:00:25"]
[BlackClock "0:01:05"]

1. c4 {[%clk 0:03:00]}  e5 {[%clk 0:02:59]} 2. Nc3 {[%clk 0:02:58]}  Nc6 {[%clk 0:02:59]} 3. g3 {[%clk 0:02:54]}  Bc5 {[%clk 0:03:00]} 4. Bg2 {[%clk 0:02:54]}  d6 {[%clk 0:03:00]} 5. a3 {[%clk 0:02:53]}  a5 {[%clk 0:02:55]} 6. e3 {[%clk 0:02:53]}  Be6 {[%clk 0:02:47]} 7. b3 {[%clk 0:02:49]}  Nf6 {[%clk 0:02:42]} 8. Nge2 {[%clk 0:02:49]}  d5 {[%clk 0:02:42]} 9. d4 {[%clk 0:02:46]}  exd4 {[%clk 0:02:43]} 10. exd4 {[%clk 0:02:47]}  Be7 {[%clk 0:02:41]} 11. c5 {[%clk 0:02:25]}  Qd7 {[%clk 0:02:38]} 12. Nf4 {[%clk 0:02:23]}  Bg4 {[%clk 0:02:37]} 13. f3 {[%clk 0:02:22]}  Bf5 {[%clk 0:02:36]} 14. g4 {[%clk 0:02:22]}  Be6 {[%clk 0:02:29]} 15. g5 {[%clk 0:02:15]}  Ng8 {[%clk 0:02:26]} 16. h4 {[%clk 0:02:15]}  h6 {[%clk 0:02:20]} 17. g6 {[%clk 0:02:15]}  fxg6 {[%clk 0:02:19]} 18. Nxg6 {[%clk 0:02:15]}  Bf6 {[%clk 0:02:14]} 19. Nxh8 {[%clk 0:02:10]}  Nxd4 {[%clk 0:02:03]} 20. Ng6 {[%clk 0:02:02]}  Bf5 {[%clk 0:02:00]} 21. O-O {[%clk 0:01:31]}  Bxg6 {[%clk 0:01:58]} 22. Re1+ {[%clk 0:01:32]}  Ne7 {[%clk 0:01:52]} 23. Ra2 {[%clk 0:01:31]}  Rd8 {[%clk 0:01:45]} 24. f4 {[%clk 0:01:21]}  Nf5 {[%clk 0:01:38]} 25. Nxd5 {[%clk 0:01:17]}  Bxh4 {[%clk 0:01:32]} 26. Re5 {[%clk 0:01:07]}  c6 {[%clk 0:01:31]} 27. Qg4 {[%clk 0:01:07]}  Kf7 {[%clk 0:01:22]} 28. Ne3 {[%clk 0:00:26]}  Bf6 {[%clk 0:01:19]} 29. Nxf5 {[%clk 0:00:25]}  Bxe5 {[%clk 0:01:13]} 30. Nxe7 {[%clk 0:00:25]}  Qxg4 {[%clk 0:01:12]} 31. fxe5 {[%clk 0:00:25]}  Rd1+ {[%clk 0:01:12]} 32. Kh2 {[%clk 0:00:25]}  Kxe7 {[%clk 0:01:05]} 0-1


[Site "https://www.chess.com"]

[Event "Titled Tuesday Blitz February 14 Late 2023"]
[White "Ibadov, Dashgyn"]
[Black "Gutenev, Alexander"]
[WhiteFideId "24107514"]
[BlackFideId "4195540"]
[WhiteElo "2391"]
[BlackElo "2455"]
[Result "0-1"]
[Round "11"]
[TimeControl "180+2"]
[Date "2023.02.14"]
[WhiteClock "0:00:05"]
[BlackClock "0:00:30"]

1. e4 {[%clk 0:03:00]}  c5 {[%clk 0:02:21]} 2. Nc3 {[%clk 0:02:58]}  Nc6 {[%clk 0:02:21]} 3. Bb5 {[%clk 0:02:59]}  Nd4 {[%clk 0:02:20]} 4. Nf3 {[%clk 0:02:59]}  e6 {[%clk 0:02:14]} 5. O-O {[%clk 0:02:53]}  a6 {[%clk 0:02:14]} 6. Bd3 {[%clk 0:02:50]}  Nc6 {[%clk 0:02:14]} 7. e5 {[%clk 0:02:40]}  g5 {[%clk 0:02:00]} 8. Be4 {[%clk 0:02:34]}  g4 {[%clk 0:01:47]} 9. Ne1 {[%clk 0:02:23]}  Nxe5 {[%clk 0:01:46]} 10. f4 {[%clk 0:02:23]}  gxf3 {[%clk 0:01:36]} 11. Nxf3 {[%clk 0:02:21]}  Ng6 {[%clk 0:01:36]} 12. d4 {[%clk 0:02:18]}  d5 {[%clk 0:01:34]} 13. Bg5 {[%clk 0:01:13]}  Be7 {[%clk 0:01:31]} 14. Bxg6 {[%clk 0:01:07]}  hxg6 {[%clk 0:01:31]} 15. Bxe7 {[%clk 0:01:00]}  Qxe7 {[%clk 0:01:31]} 16. Ne5 {[%clk 0:00:59]}  Nh6 {[%clk 0:01:30]} 17. dxc5 {[%clk 0:00:32]}  Qxc5+ {[%clk 0:01:28]} 18. Kh1 {[%clk 0:00:31]}  Nf5 {[%clk 0:01:28]} 19. Qf3 {[%clk 0:00:29]}  Qd4 {[%clk 0:01:19]} 20. Rae1 {[%clk 0:00:27]}  Qh4 {[%clk 0:01:15]} 21. h3 {[%clk 0:00:23]}  Kf8 {[%clk 0:00:47]} 22. Nxd5 {[%clk 0:00:14]}  exd5 {[%clk 0:00:46]} 23. Qxd5 {[%clk 0:00:15]}  Qf6 {[%clk 0:00:32]} 24. Ng4 {[%clk 0:00:03]}  Qd6 {[%clk 0:00:31]} 25. Rxf5 {[%clk 0:00:02]}  Qxd5 {[%clk 0:00:30]} 26. Rxd5 {[%clk 0:00:03]}  Bxg4 {[%clk 0:00:30]} 27. Kg1 {[%clk 0:00:02]}  Be6 {[%clk 0:00:31]} 28. Rd6 {[%clk 0:00:03]}  Rc8 {[%clk 0:00:29]} 29. c3 {[%clk 0:00:03]}  Ke7 {[%clk 0:00:29]} 30. Rb6 {[%clk 0:00:03]}  Rc7 {[%clk 0:00:29]} 31. a3 {[%clk 0:00:03]}  Rd8 {[%clk 0:00:29]} 32. Re4 {[%clk 0:00:04]}  Rd6 {[%clk 0:00:28]} 33. Rbb4 {[%clk 0:00:02]}  a5 {[%clk 0:00:28]} 34. Rbd4 {[%clk 0:00:01]}  Rxd4 {[%clk 0:00:28]} 35. Rxd4 {[%clk 0:00:02]}  b6 {[%clk 0:00:28]} 36. Kf2 {[%clk 0:00:02]}  Rd7 {[%clk 0:00:28]} 37. Re4 {[%clk 0:00:02]}  Rd2+ {[%clk 0:00:28]} 38. Re2 {[%clk 0:00:02]}  Rxe2+ {[%clk 0:00:29]} 39. Kxe2 {[%clk 0:00:03]}  Kd6 {[%clk 0:00:30]} 40. Kd3 {[%clk 0:00:04]}  Ke5 {[%clk 0:00:30]} 41. b3 {[%clk 0:00:05]}  Bxb3 {[%clk 0:00:30]} 0-1


[Site "https://www.chess.com"]

[Event "Titled Tuesday Blitz February 14 Late 2023"]
[White "Fiorito, Francisco"]
[Black "Solon, Nathan"]
[WhiteFideId "180165"]
[BlackFideId "2017229"]
[WhiteElo "2305"]
[BlackElo "2306"]
[Result "1-0"]
[Round "11"]
[TimeControl "180+2"]
[Date "2023.02.14"]
[WhiteClock "0:00:34"]
[BlackClock "0:00:09"]

1. d4 {[%clk 0:03:00]}  Nf6 {[%clk 0:02:59]} 2. Nc3 {[%clk 0:03:01]}  d5 {[%clk 0:02:58]} 3. Bf4 {[%clk 0:03:01]}  c5 {[%clk 0:02:55]} 4. e3 {[%clk 0:03:01]}  cxd4 {[%clk 0:02:56]} 5. exd4 {[%clk 0:03:02]}  Bg4 {[%clk 0:02:55]} 6. Nf3 {[%clk 0:03:01]}  Nc6 {[%clk 0:02:54]} 7. Be2 {[%clk 0:02:46]}  e6 {[%clk 0:02:50]} 8. h3 {[%clk 0:02:43]}  Bxf3 {[%clk 0:02:42]} 9. Bxf3 {[%clk 0:02:42]}  Bd6 {[%clk 0:02:42]} 10. Bxd6 {[%clk 0:02:41]}  Qxd6 {[%clk 0:02:43]} 11. O-O {[%clk 0:02:38]}  O-O {[%clk 0:02:42]} 12. Ne2 {[%clk 0:02:33]}  b5 {[%clk 0:02:40]} 13. Nc1 {[%clk 0:02:29]}  Rfc8 {[%clk 0:02:35]} 14. Nb3 {[%clk 0:02:29]}  a5 {[%clk 0:02:29]} 15. Re1 {[%clk 0:02:29]}  Nd7 {[%clk 0:02:26]} 16. Qd3 {[%clk 0:02:28]}  Nb4 {[%clk 0:02:19]} 17. Qxb5 {[%clk 0:02:28]}  Nxc2 {[%clk 0:02:19]} 18. Nc5 {[%clk 0:02:16]}  Nxc5 {[%clk 0:02:15]} 19. dxc5 {[%clk 0:02:16]}  Rxc5 {[%clk 0:02:14]} 20. Qb7 {[%clk 0:02:17]}  Rac8 {[%clk 0:02:11]} 21. Rec1 {[%clk 0:02:06]}  Nxa1 {[%clk 0:02:10]} 22. Qxc8+ {[%clk 0:02:06]}  Rxc8 {[%clk 0:02:09]} 23. Rxc8+ {[%clk 0:02:07]}  Qf8 {[%clk 0:02:10]} 24. Rxf8+ {[%clk 0:02:08]}  Kxf8 {[%clk 0:02:11]} 25. Bd1 {[%clk 0:02:08]}  Ke7 {[%clk 0:02:08]} 26. f4 {[%clk 0:02:04]}  Kd6 {[%clk 0:02:05]} 27. Kf2 {[%clk 0:02:04]}  Kc5 {[%clk 0:01:54]} 28. Ke3 {[%clk 0:02:05]}  Kc4 {[%clk 0:01:54]} 29. Kd2 {[%clk 0:02:03]}  d4 {[%clk 0:01:49]} 30. Be2+ {[%clk 0:02:01]}  Kd5 {[%clk 0:01:43]} 31. Bd3 {[%clk 0:02:02]}  f6 {[%clk 0:01:36]} 32. Kc1 {[%clk 0:01:51]}  e5 {[%clk 0:01:36]} 33. fxe5 {[%clk 0:01:50]}  fxe5 {[%clk 0:01:37]} 34. Kb1 {[%clk 0:01:03]}  e4 {[%clk 0:01:37]} 35. Bf1 {[%clk 0:01:04]}  d3 {[%clk 0:01:35]} 36. Kxa1 {[%clk 0:01:04]}  Kd4 {[%clk 0:01:34]} 37. Kb1 {[%clk 0:01:04]}  e3 {[%clk 0:01:35]} 38. Kc1 {[%clk 0:01:05]}  a4 {[%clk 0:00:39]} 39. Kd1 {[%clk 0:01:00]}  g5 {[%clk 0:00:32]} 40. b3 {[%clk 0:00:36]}  axb3 {[%clk 0:00:27]} 41. axb3 {[%clk 0:00:37]}  Kc3 {[%clk 0:00:09]} 42. b4 {[%clk 0:00:35]}  Kxb4 {[%clk 0:00:08]} 43. Bxd3 {[%clk 0:00:35]}  Kc3 {[%clk 0:00:09]} 44. Bxh7 {[%clk 0:00:34]} 1-0


[Site "https://www.chess.com"]

[Event "Titled Tuesday Blitz February 14 Late 2023"]
[White "O`Gorman, Tom"]
[Black "Yuan, Qingyu"]
[WhiteFideId "2508249"]
[BlackFideId "8609772"]
[WhiteElo "2355"]
[BlackElo "2373"]
[Result "1/2-1/2"]
[Round "11"]
[TimeControl "180+2"]
[Date "2023.02.14"]
[WhiteClock "0:00:14"]
[BlackClock "0:00:06"]

1. d4 {[%clk 0:03:00]}  d5 {[%clk 0:03:00]} 2. c4 {[%clk 0:03:00]}  e6 {[%clk 0:03:00]} 3. Nc3 {[%clk 0:03:00]}  Be7 {[%clk 0:03:00]} 4. Nf3 {[%clk 0:02:58]}  Nf6 {[%clk 0:03:00]} 5. Bf4 {[%clk 0:02:58]}  O-O {[%clk 0:03:00]} 6. e3 {[%clk 0:02:59]}  Nbd7 {[%clk 0:03:00]} 7. c5 {[%clk 0:02:50]}  c6 {[%clk 0:03:00]} 8. Bd3 {[%clk 0:02:50]}  b6 {[%clk 0:03:01]} 9. b4 {[%clk 0:02:48]}  a5 {[%clk 0:03:01]} 10. a3 {[%clk 0:02:45]}  Ba6 {[%clk 0:03:02]} 11. O-O {[%clk 0:02:44]}  Qc8 {[%clk 0:03:00]} 12. h3 {[%clk 0:02:42]}  h6 {[%clk 0:03:00]} 13. Bh2 {[%clk 0:02:41]}  Qb7 {[%clk 0:02:55]} 14. Qe2 {[%clk 0:02:39]}  Bxd3 {[%clk 0:02:54]} 15. Qxd3 {[%clk 0:02:39]}  Ra6 {[%clk 0:02:41]} 16. Rfc1 {[%clk 0:02:25]}  axb4 {[%clk 0:02:28]} 17. axb4 {[%clk 0:02:26]}  Rfa8 {[%clk 0:02:14]} 18. Rxa6 {[%clk 0:02:20]}  Rxa6 {[%clk 0:02:00]} 19. Qd1 {[%clk 0:01:22]}  bxc5 {[%clk 0:01:41]} 20. bxc5 {[%clk 0:01:23]}  Qb4 {[%clk 0:01:40]} 21. Qc2 {[%clk 0:01:21]}  Ra3 {[%clk 0:01:39]} 22. Ne2 {[%clk 0:01:15]}  Ne4 {[%clk 0:01:14]} 23. Rb1 {[%clk 0:01:13]}  Qa5 {[%clk 0:01:12]} 24. Bf4 {[%clk 0:01:05]}  Ra2 {[%clk 0:01:00]} 25. Rb2 {[%clk 0:01:06]}  Ra1+ {[%clk 0:00:49]} 26. Rb1 {[%clk 0:01:06]}  Nf8 {[%clk 0:00:38]} 27. Rxa1 {[%clk 0:01:03]}  Qxa1+ {[%clk 0:00:38]} 28. Qc1 {[%clk 0:01:04]}  Qa2 {[%clk 0:00:35]} 29. Qe1 {[%clk 0:00:59]}  g5 {[%clk 0:00:34]} 30. Bc7 {[%clk 0:00:55]}  Ng6 {[%clk 0:00:33]} 31. Ng3 {[%clk 0:00:52]}  Nxg3 {[%clk 0:00:22]} 32. Bxg3 {[%clk 0:00:51]}  Bd8 {[%clk 0:00:23]} 33. Qb4 {[%clk 0:00:47]}  Qa8 {[%clk 0:00:18]} 34. Ne5 {[%clk 0:00:45]}  Nxe5 {[%clk 0:00:16]} 35. Bxe5 {[%clk 0:00:45]}  Kh7 {[%clk 0:00:13]} 36. Qb1+ {[%clk 0:00:43]}  Kg8 {[%clk 0:00:13]} 37. g3 {[%clk 0:00:43]}  Be7 {[%clk 0:00:06]} 38. Kg2 {[%clk 0:00:43]}  Bf8 {[%clk 0:00:07]} 39. Qb6 {[%clk 0:00:38]}  Bg7 {[%clk 0:00:07]} 40. Bxg7 {[%clk 0:00:36]}  Kxg7 {[%clk 0:00:07]} 41. Qc7 {[%clk 0:00:37]}  Qa4 {[%clk 0:00:07]} 42. Qd7 {[%clk 0:00:35]}  Qb5 {[%clk 0:00:06]} 43. Kf3 {[%clk 0:00:34]}  Qa4 {[%clk 0:00:04]} 44. Qd6 {[%clk 0:00:33]}  Qd1+ {[%clk 0:00:04]} 45. Kg2 {[%clk 0:00:33]}  Qa4 {[%clk 0:00:04]} 46. Qe5+ {[%clk 0:00:31]}  Kg6 {[%clk 0:00:04]} 47. h4 {[%clk 0:00:28]}  Qc2 {[%clk 0:00:03]} 48. hxg5 {[%clk 0:00:27]}  hxg5 {[%clk 0:00:03]} 49. Qd6 {[%clk 0:00:22]}  Qe4+ {[%clk 0:00:03]} 50. Kh2 {[%clk 0:00:21]}  Qc2 {[%clk 0:00:03]} 51. Kg1 {[%clk 0:00:22]}  Qb1+ {[%clk 0:00:03]} 52. Kg2 {[%clk 0:00:20]}  Qe4+ {[%clk 0:00:04]} 53. Kf1 {[%clk 0:00:19]}  Qb1+ {[%clk 0:00:04]} 54. Kg2 {[%clk 0:00:17]}  Qb5 {[%clk 0:00:04]} 55. Qf8 {[%clk 0:00:16]}  Qb1 {[%clk 0:00:03]} 56. Qg8+ {[%clk 0:00:16]}  Kf6 {[%clk 0:00:04]} 57. Qd8+ {[%clk 0:00:15]}  Kg6 {[%clk 0:00:04]} 58. Qg8+ {[%clk 0:00:15]}  Kf6 {[%clk 0:00:05]} 59. Qh8+ {[%clk 0:00:14]}  Ke7 {[%clk 0:00:05]} 60. Qc8 {[%clk 0:00:13]}  Qe4+ {[%clk 0:00:05]} 61. Kg1 {[%clk 0:00:13]}  Qb1+ {[%clk 0:00:05]} 62. Kg2 {[%clk 0:00:13]}  Qe4+ {[%clk 0:00:06]} 63. Kg1 {[%clk 0:00:14]}  Qb1+ {[%clk 0:00:06]} 64. Kg2 {[%clk 0:00:14]} 1/2-1/2


[Site "https://www.chess.com"]

[Event "Titled Tuesday Blitz February 14 Late 2023"]
[White "Prem, Pranav"]
[Black "Jaracz, Pawel"]
[WhiteFideId "30901057"]
[BlackFideId "1102222"]
[WhiteElo "2061"]
[BlackElo "2467"]
[Result "0-1"]
[Round "11"]
[TimeControl "180+2"]
[Date "2023.02.14"]
[WhiteClock "0:00:06"]
[BlackClock "0:00:35"]

1. d4 {[%clk 0:03:00]}  Nf6 {[%clk 0:02:59]} 2. c4 {[%clk 0:02:56]}  c5 {[%clk 0:02:59]} 3. d5 {[%clk 0:02:56]}  b5 {[%clk 0:03:00]} 4. cxb5 {[%clk 0:02:57]}  a6 {[%clk 0:03:00]} 5. bxa6 {[%clk 0:02:58]}  g6 {[%clk 0:02:59]} 6. Nc3 {[%clk 0:02:57]}  Bg7 {[%clk 0:03:00]} 7. e4 {[%clk 0:02:50]}  d6 {[%clk 0:02:59]} 8. Nf3 {[%clk 0:02:49]}  O-O {[%clk 0:02:59]} 9. Be2 {[%clk 0:02:32]}  Bxa6 {[%clk 0:02:56]} 10. O-O {[%clk 0:02:31]}  Nbd7 {[%clk 0:02:48]} 11. a4 {[%clk 0:02:26]}  Qa5 {[%clk 0:02:43]} 12. Nd2 {[%clk 0:01:54]}  Rfb8 {[%clk 0:02:33]} 13. Ra3 {[%clk 0:01:45]}  Ne8 {[%clk 0:02:30]} 14. Bb5 {[%clk 0:01:34]}  Bc8 {[%clk 0:02:19]} 15. Nc4 {[%clk 0:01:18]}  Qd8 {[%clk 0:02:19]} 16. Bc6 {[%clk 0:01:08]}  Ra7 {[%clk 0:02:13]} 17. a5 {[%clk 0:01:00]}  Ba6 {[%clk 0:02:12]} 18. Ra4 {[%clk 0:00:49]}  Nc7 {[%clk 0:02:03]} 19. Re1 {[%clk 0:00:43]}  Rb4 {[%clk 0:01:46]} 20. Ne3 {[%clk 0:00:23]}  Ne5 {[%clk 0:01:42]} 21. Nc2 {[%clk 0:00:19]}  Rxa4 {[%clk 0:01:36]} 22. Bxa4 {[%clk 0:00:18]}  Nd3 {[%clk 0:01:35]} 23. Re3 {[%clk 0:00:17]}  Nxc1 {[%clk 0:01:33]} 24. Qxc1 {[%clk 0:00:18]}  Rb7 {[%clk 0:01:33]} 25. Bc6 {[%clk 0:00:18]}  Rb8 {[%clk 0:01:33]} 26. Re1 {[%clk 0:00:17]}  Nb5 {[%clk 0:01:29]} 27. Bxb5 {[%clk 0:00:11]}  Bxb5 {[%clk 0:01:29]} 28. Qa1 {[%clk 0:00:12]}  Ba6 {[%clk 0:01:29]} 29. Qa3 {[%clk 0:00:11]}  Rb7 {[%clk 0:01:25]} 30. Ne3 {[%clk 0:00:11]}  Qb8 {[%clk 0:01:25]} 31. Ned1 {[%clk 0:00:07]}  Bd4 {[%clk 0:01:21]} 32. h3 {[%clk 0:00:07]}  Rb4 {[%clk 0:01:20]} 33. Qa2 {[%clk 0:00:07]}  Bc4 {[%clk 0:01:19]} 34. Qa1 {[%clk 0:00:06]}  Qa7 {[%clk 0:01:18]} 35. Kh1 {[%clk 0:00:04]}  Bb3 {[%clk 0:01:16]} 36. f3 {[%clk 0:00:04]}  c4 {[%clk 0:01:14]} 37. Kh2 {[%clk 0:00:02]}  h5 {[%clk 0:01:01]} 38. Qa3 {[%clk 0:00:03]}  Bc5 {[%clk 0:01:00]} 39. Qa1 {[%clk 0:00:03]}  h4 {[%clk 0:01:00]} 40. Re2 {[%clk 0:00:02]}  Bg1+ {[%clk 0:00:58]} 41. Kh1 {[%clk 0:00:03]}  Bd4 {[%clk 0:00:58]} 42. Kh2 {[%clk 0:00:03]}  e6 {[%clk 0:00:57]} 43. Rd2 {[%clk 0:00:03]}  Bg1+ {[%clk 0:00:56]} 44. Kh1 {[%clk 0:00:03]}  e5 {[%clk 0:00:54]} 45. Re2 {[%clk 0:00:03]}  Bd4 {[%clk 0:00:53]} 46. Rd2 {[%clk 0:00:04]}  Rb8 {[%clk 0:00:53]} 47. Ne2 {[%clk 0:00:03]}  Bc5 {[%clk 0:00:51]} 48. Ndc3 {[%clk 0:00:03]}  Bb4 {[%clk 0:00:51]} 49. Qc1 {[%clk 0:00:02]}  Qxa5 {[%clk 0:00:50]} 50. Qe1 {[%clk 0:00:02]}  Ra8 {[%clk 0:00:51]} 51. Qg1 {[%clk 0:00:02]}  Bc5 {[%clk 0:00:47]} 52. Qf1 {[%clk 0:00:02]}  Be3 {[%clk 0:00:44]} 53. Rd1 {[%clk 0:00:01]}  Bxd1 {[%clk 0:00:43]} 54. Qxd1 {[%clk 0:00:02]}  Qa1 {[%clk 0:00:43]} 55. Qxa1 {[%clk 0:00:02]}  Rxa1+ {[%clk 0:00:43]} 56. Kh2 {[%clk 0:00:03]}  Bd4 {[%clk 0:00:44]} 57. g3 {[%clk 0:00:04]}  Re1 {[%clk 0:00:35]} 58. gxh4 {[%clk 0:00:02]}  Rxe2+ {[%clk 0:00:34]} 59. Nxe2 {[%clk 0:00:02]}  Bxb2 {[%clk 0:00:34]} 60. Kg2 {[%clk 0:00:03]}  c3 {[%clk 0:00:35]} 61. Kg3 {[%clk 0:00:02]}  c2 {[%clk 0:00:35]} 62. Kg4 {[%clk 0:00:03]}  c1=Q {[%clk 0:00:35]} 63. Nxc1 {[%clk 0:00:04]}  Bxc1 {[%clk 0:00:36]} 64. h5 {[%clk 0:00:04]}  Kg7 {[%clk 0:00:35]} 65. hxg6 {[%clk 0:00:04]}  fxg6 {[%clk 0:00:35]} 66. h4 {[%clk 0:00:05]}  Kh6 {[%clk 0:00:36]} 67. Kg3 {[%clk 0:00:05]}  Kh5 {[%clk 0:00:35]} 68. Kh3 {[%clk 0:00:06]}  Bf4 {[%clk 0:00:35]} 0-1


[Site "https://www.chess.com"]

[Event "Titled Tuesday Blitz February 14 Late 2023"]
[White "Salimova, Nurgyul"]
[Black "Kaplan, Avi Harrison"]
[WhiteFideId "2915138"]
[BlackFideId "30934559"]
[WhiteElo "2391"]
[BlackElo "2146"]
[Result "1-0"]
[Round "11"]
[TimeControl "180+2"]
[Date "2023.02.14"]
[WhiteClock "0:00:20"]
[BlackClock "0:00:06"]

1. e4 {[%clk 0:03:00]}  c5 {[%clk 0:02:59]} 2. Nf3 {[%clk 0:02:57]}  d6 {[%clk 0:03:00]} 3. d4 {[%clk 0:02:57]}  cxd4 {[%clk 0:03:00]} 4. Nxd4 {[%clk 0:02:58]}  Nf6 {[%clk 0:03:01]} 5. Nc3 {[%clk 0:02:58]}  a6 {[%clk 0:03:01]} 6. Bg5 {[%clk 0:02:59]}  Nbd7 {[%clk 0:03:02]} 7. Qe2 {[%clk 0:02:55]}  e6 {[%clk 0:02:56]} 8. f4 {[%clk 0:02:54]}  Be7 {[%clk 0:02:54]} 9. O-O-O {[%clk 0:02:52]}  Qc7 {[%clk 0:02:54]} 10. g4 {[%clk 0:02:33]}  b5 {[%clk 0:02:49]} 11. Bxf6 {[%clk 0:02:33]}  Bxf6 {[%clk 0:02:46]} 12. g5 {[%clk 0:02:33]}  Be7 {[%clk 0:02:46]} 13. a3 {[%clk 0:02:14]}  Bb7 {[%clk 0:02:46]} 14. h4 {[%clk 0:02:08]}  Rc8 {[%clk 0:02:46]} 15. f5 {[%clk 0:02:01]}  e5 {[%clk 0:02:45]} 16. Nb3 {[%clk 0:01:53]}  Nb6 {[%clk 0:02:45]} 17. Bh3 {[%clk 0:01:41]}  f6 {[%clk 0:01:46]} 18. Rd3 {[%clk 0:01:40]}  Nc4 {[%clk 0:01:43]} 19. Rhd1 {[%clk 0:01:29]}  O-O {[%clk 0:01:41]} 20. g6 {[%clk 0:01:21]}  h6 {[%clk 0:01:38]} 21. Bf1 {[%clk 0:01:19]}  Qb6 {[%clk 0:01:33]} 22. Qe1 {[%clk 0:01:09]}  a5 {[%clk 0:01:28]} 23. Nd2 {[%clk 0:00:31]}  b4 {[%clk 0:00:47]} 24. Nxc4 {[%clk 0:00:31]}  Rxc4 {[%clk 0:00:47]} 25. Rxd6 {[%clk 0:00:28]}  Bxd6 {[%clk 0:00:25]} 26. Bxc4+ {[%clk 0:00:28]}  Kh8 {[%clk 0:00:25]} 27. axb4 {[%clk 0:00:28]}  axb4 {[%clk 0:00:20]} 28. Na4 {[%clk 0:00:27]}  Qc7 {[%clk 0:00:08]} 29. Bb3 {[%clk 0:00:27]}  Rc8 {[%clk 0:00:07]} 30. Kb1 {[%clk 0:00:25]}  Bc6 {[%clk 0:00:06]} 31. Qd2 {[%clk 0:00:20]} 1-0


[Site "https://www.chess.com"]

[Event "Titled Tuesday Blitz February 14 Late 2023"]
[White "Remolar Gallen, Jose"]
[Black "Golubka, Petro"]
[WhiteFideId "2215187"]
[BlackFideId "14114224"]
[WhiteElo "2285"]
[BlackElo "2371"]
[Result "1/2-1/2"]
[Round "11"]
[TimeControl "180+2"]
[Date "2023.02.14"]
[WhiteClock "0:00:05"]
[BlackClock "0:01:46"]

1. d4 {[%clk 0:03:00]}  d5 {[%clk 0:02:37]} 2. c4 {[%clk 0:03:01]}  e6 {[%clk 0:02:37]} 3. Nc3 {[%clk 0:03:01]}  Be7 {[%clk 0:02:37]} 4. Bf4 {[%clk 0:02:59]}  Nf6 {[%clk 0:02:36]} 5. e3 {[%clk 0:02:55]}  O-O {[%clk 0:02:36]} 6. Rc1 {[%clk 0:02:54]}  dxc4 {[%clk 0:02:34]} 7. Bxc4 {[%clk 0:02:54]}  c5 {[%clk 0:02:35]} 8. Nf3 {[%clk 0:02:46]}  Nc6 {[%clk 0:02:34]} 9. O-O {[%clk 0:02:32]}  a6 {[%clk 0:02:28]} 10. Qe2 {[%clk 0:02:03]}  b5 {[%clk 0:02:25]} 11. Bb3 {[%clk 0:02:03]}  c4 {[%clk 0:02:19]} 12. Bc2 {[%clk 0:02:02]}  Bb7 {[%clk 0:02:20]} 13. Rfd1 {[%clk 0:01:56]}  Nb4 {[%clk 0:02:18]} 14. Bb1 {[%clk 0:01:53]}  Nbd5 {[%clk 0:02:15]} 15. Bg3 {[%clk 0:01:40]}  Nxc3 {[%clk 0:02:14]} 16. bxc3 {[%clk 0:01:39]}  Be4 {[%clk 0:02:12]} 17. Ne5 {[%clk 0:01:34]}  Qd5 {[%clk 0:02:10]} 18. f3 {[%clk 0:01:28]}  Bxb1 {[%clk 0:02:08]} 19. Rxb1 {[%clk 0:01:29]}  Ba3 {[%clk 0:02:06]} 20. Bh4 {[%clk 0:01:20]}  Nd7 {[%clk 0:02:02]} 21. e4 {[%clk 0:01:16]}  Qd6 {[%clk 0:02:01]} 22. Ng4 {[%clk 0:01:10]}  f5 {[%clk 0:01:58]} 23. e5 {[%clk 0:01:00]}  Qc6 {[%clk 0:01:57]} 24. Ne3 {[%clk 0:00:53]}  f4 {[%clk 0:01:57]} 25. Nc2 {[%clk 0:00:46]}  Nb6 {[%clk 0:01:52]} 26. Nxa3 {[%clk 0:00:44]}  Nd5 {[%clk 0:01:53]} 27. Be1 {[%clk 0:00:43]}  Rfc8 {[%clk 0:01:53]} 28. Nc2 {[%clk 0:00:41]}  a5 {[%clk 0:01:53]} 29. Rb2 {[%clk 0:00:29]}  Rcb8 {[%clk 0:01:51]} 30. Rdb1 {[%clk 0:00:29]}  Rb6 {[%clk 0:01:51]} 31. a4 {[%clk 0:00:25]}  Rab8 {[%clk 0:01:52]} 32. axb5 {[%clk 0:00:25]}  Rxb5 {[%clk 0:01:53]} 33. Rxb5 {[%clk 0:00:25]}  Rxb5 {[%clk 0:01:52]} 34. Rxb5 {[%clk 0:00:22]}  Qxb5 {[%clk 0:01:53]} 35. Na3 {[%clk 0:00:22]}  Qb3 {[%clk 0:01:53]} 36. Nxc4 {[%clk 0:00:20]}  a4 {[%clk 0:01:53]} 37. Nd6 {[%clk 0:00:16]}  Nxc3 {[%clk 0:01:52]} 38. Qa6 {[%clk 0:00:15]}  h5 {[%clk 0:01:49]} 39. Qc8+ {[%clk 0:00:14]}  Kh7 {[%clk 0:01:49]} 40. Qe8 {[%clk 0:00:14]}  Ne2+ {[%clk 0:01:46]} 41. Kf1 {[%clk 0:00:13]}  Nxd4 {[%clk 0:01:47]} 42. Qxh5+ {[%clk 0:00:12]}  Kg8 {[%clk 0:01:47]} 43. Qf7+ {[%clk 0:00:12]}  Kh7 {[%clk 0:01:46]} 44. Qh5+ {[%clk 0:00:09]}  Kg8 {[%clk 0:01:46]} 45. Qf7+ {[%clk 0:00:08]}  Kh7 {[%clk 0:01:46]} 46. Qh5+ {[%clk 0:00:05]} 1/2-1/2


[Site "https://www.chess.com"]